lending/lending_fUSD_20241025
["ID","MTS","AMOUNT","RATE_DAILY","PERIOD"]
[340832972,1729896639607,-56473.73106846,0.00059402,120]
[340832973,1729896639698,-82.63141818,0.00059402,120]
[340832975,1729896640138,-1200.0,0.00059402,120]
[340832976,1729896640173,-2266.00000008,0.00059402,120]
[340832977,1729896640184,-2610.7945,0.00059402,120]
[340832978,1729896640201,-3173.37146529,0.00059402,120]
[340832979,1729896640231,-992.34917274,0.00059402,120]
[340832980,1729896640350,-266340.59076177,0.00059402,120]
[340832983,1729896643018,-3815.69327892,0.00059352,2]
[340832989,1729896643123,-5428.97971746,0.00059352,2]
[340832990,1729896643132,-34418.7283469,0.00059402,120]
[340832991,1729896643143,-724.09784413,0.00059402,120]
[340832992,1729896643165,-52.75330192,0.00059402,120]
[340832993,1729896643231,-3918.7910805,0.00059402,120]
[340832994,1729896643243,-802.06340159,0.00059402,120]
[340832995,1729896643255,-8251.36135094,0.00059402,120]
[340832996,1729896644011,-4342.00319205,0.00059402,120]
[340832997,1729896644132,-526.83208673,0.00059402,120]
[340833002,1729896646075,-432.77116256,0.00059402,120]
[340833003,1729896646398,-15.65369699,0.00059402,120]
[340833004,1729896646421,-58115.01568436,0.00059402,120]
[340833005,1729896646444,-739.87,0.00059392,30]
[340833006,1729896646453,-5181.68582735,0.00059402,120]
[340833007,1729896646601,-396.97380742,0.00059402,120]
[340833008,1729896646612,-2114.61914265,0.00059402,120]
[340833009,1729896646843,-1424.91738506,0.00059402,120]
[340833010,1729896646855,-6569.47907139,0.00059402,120]
[340833011,1729896646866,-889.21959213,0.00059402,120]
[340833012,1729896646877,-14490.12941697,0.00059402,120]
[340833013,1729896646918,331.68554064,0.00054,2]
[340833014,1729896671465,225.0,0.00019725,2]
[340833015,1729896889726,5050.0,0.00043038,33]
[340833016,1729896894226,120.0,0.00019178,2]
[340833017,1729896894247,45.43,0.00019178,2]
[340833018,1729896978545,157.52,0.00015342,2]
[340833022,1729897625142,-165.43,0.00035616,120]
[340833023,1729897625162,-199.33142906,0.0004584,2]
[340833024,1729897625181,-113.9962584,0.0004594,2]
[340833027,1729897748136,-500.0,0.00054795,120]
[340833062,1729897832297,-1175.07,0.00055054,2]
[340833065,1729897832315,-398.66285812,0.00055199,2]
[340833067,1729897832324,-70.58758904,0.00055299,9]
[340833069,1729897832336,-925.41241096,0.00055299,9]
[340833071,1729897832345,-3000.0,0.000553,90]
[340833072,1729897832355,-176.392,0.000553,105]
[340833075,1729897832364,-646.31,0.000553,30]
[340833077,1729897832375,-256.47,0.000553,2]
[340833079,1729897832388,-6784.47,0.000553,2]
[340833080,1729897832398,-999.99,0.000553,10]
[340833081,1729897832408,-1280.75,0.000553,2]
[340833082,1729897832417,-3421.39,0.000553,2]
[340833083,1729897832427,-4342.61,0.000553,90]
[340833084,1729897832436,-150.99,0.000553,2]
[340833085,1729897832446,-2178.21,0.000553,2]
[340833086,1729897832455,-13008.55,0.000553,30]
[340833087,1729897832466,-31030.64245185,0.000553,2]
[340833088,1729897832475,-1251.29109552,0.000559,8]
[340833089,1729897832484,-2289.01490772,0.00056,120]
[340833090,1729897832494,-151.19,0.00056538,120]
[340833091,1729897832503,-23900.0,0.00056661,2]
[340833092,1729897832512,-230.0,0.00056668,2]
[340833093,1729897832521,-5110.82,0.00056668,2]
[340833094,1729897832530,-7444.21,0.00056687,60]
[340833095,1729897832540,-2832.34,0.0005671,7]
[340833096,1729897832549,-157.0,0.00056736,2]
[340833097,1729897832558,-500.0,0.00056746,120]
[340833098,1729897832567,-200.0,0.00056754,30]
[340833099,1729897832576,-250.0,0.00056779,120]
[340833100,1729897832585,-712.08,0.00056785,2]
[340833101,1729897832595,-1274.67,0.00056787,30]
[340833102,1729897832603,-1723.38,0.000568,2]
[340833103,1729897832613,-762.79,0.00056806,2]
[340833104,1729897832622,-1343.53,0.00056814,2]
[340833105,1729897832632,-936.0,0.00056827,120]
[340833106,1729897832642,-524.93,0.00056838,2]
[340833107,1729897832651,-1000.0,0.00056863,7]
[340833108,1729897832660,-150.0,0.00056883,2]
[340833109,1729897832669,-188.59,0.00056885,120]
[340833110,1729897832678,-250.0,0.0005691,120]
[340833111,1729897832687,-1501.45,0.0005691,14]
[340833112,1729897832696,-250.0,0.0005691,120]
[340833113,1729897832705,-2168.68,0.00056972,2]
[340833114,1729897832715,-160.0,0.00056992,120]
[340833115,1729897832723,-162.33,0.00057093,2]
[340833116,1729897832733,-217.21,0.00057215,120]
[340833117,1729897832742,-1175.07,0.00057318,2]
[340833118,1729897832751,-3000.0,0.000581,90]
[340833119,1729897832760,-155.27,0.00058216,2]
[340833120,1729897832769,-155.27,0.0005824,2]
[340833121,1729897832778,-155.27,0.00058265,2]
[340833122,1729897832787,-169.89,0.00058267,2]
[340833123,1729897832796,-155.27,0.00058289,2]
[340833124,1729897832805,-155.27,0.00058313,2]
[340833125,1729897832814,-155.27,0.00058337,2]
[340833126,1729897832823,-155.27,0.00058362,2]
[340833127,1729897832832,-155.27,0.00058386,2]
[340833128,1729897832841,-155.27,0.0005841,2]
[340833129,1729897832851,-155.27,0.00058434,2]
[340833130,1729897832860,-155.27,0.00058459,2]
[340833131,1729897832868,-155.27,0.00058483,2]
[340833132,1729897832878,-155.27,0.00058507,2]
[340833133,1729897832891,-166.68,0.00058848,2]
[340833134,1729897832903,-694.0,0.000589,14]
[340833135,1729897832912,-343.05076441,0.00059078,120]
[340833136,1729897832921,-183.08216904,0.000592,30]
[340833137,1729897832930,-4564.57469091,0.00059201,15]
[340833138,1729897832939,-1251.29109553,0.00059292,9]
[340833139,1729897832950,-5050.0,0.000593,22]
[340833140,1729897832959,-5050.0,0.000593,23]
[340833141,1729897832968,-5050.0,0.000593,24]
[340833142,1729897832978,-4232.9246,0.00059302,10]
[340833143,1729897832987,-153.39907436,0.00059302,28]
[340833144,1729897832996,-165.83384322,0.00059302,76]
[340833145,1729897833005,-338.10907948,0.00059342,2]
[340833146,1729897833014,-216.60606704,0.00059342,31]
[340833147,1729897833024,-500.0,0.00059373,15]
[340833148,1729897833033,-114479.385729,0.00059392,12]
[340833149,1729897833042,-567.86951579,0.00059392,7]
[340833150,1729897833051,-153.98,0.00059392,120]
[340833151,1729897833060,-500.0,0.00059401,120]
[340833152,1729897833069,-499.14692765,0.00059401,120]
[340833153,1729897833079,-500.0,0.00059401,120]
[340833154,1729897833088,-500.0,0.00059401,14]
[340833155,1729897833097,-481.84284731,0.00059401,120]
[340833156,1729897833110,-1285.70283055,0.00059401,120]
[340833157,1729897833121,-552.91371413,0.00059401,120]
[340833158,1729897833135,-628.42,0.00059401,120]
[340833159,1729897833146,-4551.12060801,0.00059401,120]
[340833160,1729897833155,-5851.32869769,0.00059401,120]
[340833161,1729897833166,-1648.67130231,0.00059401,120]
[340833162,1729897833176,-3124.0383718,0.00059401,120]
[340833163,1729897833186,-5091.10499961,0.00059402,60]
[340833164,1729897833225,-2105.53519508,0.00059402,60]
[340833165,1729897833234,-48578.93000801,0.00059402,64]
[340833166,1729897833244,-228.54400279,0.00059402,18]
[340833167,1729897833253,-208.35988233,0.00059402,30]
[340833168,1729897833263,-24778.51335303,0.00059402,30]
[340833169,1729897833272,-197.46094837,0.00059402,120]
[340833170,1729897833282,-6519.38226155,0.00059402,120]
[340833171,1729897833294,-1274.32993384,0.00059402,120]
[340833172,1729897833312,-737.5985368,0.00059402,120]
[340833173,1729897833323,-132204.57324457,0.00059402,120]
[340833174,1729897833334,-3134.8821489,0.00059402,120]
[340833177,1729897838355,-169.93,0.00058523,120]
[340833178,1729897838366,-170.0,0.00059392,2]
[340833179,1729897838375,-6291.695,0.00059402,120]
[340833180,1729897838390,-1066.57999999,0.00059402,120]
[340833181,1729897838402,-899705.9309512,0.00059402,120]
[340833182,1729897838484,-259.8058266,0.00059402,120]
[340833183,1729897838711,-254856.56245695,0.00059402,120]
[340833184,1729897838724,-105673.71472026,0.00059402,120]
[340833185,1729897838733,-567.86951579,0.00059442,7]
[340833186,1729897838742,-632.55967898,0.00059452,120]
[340833187,1729897838751,-263.048346,0.00059452,120]
[340833188,1729897838760,-500.0,0.00059452,120]
[340833189,1729897838770,-500.0,0.00059452,120]
[340833190,1729897838779,-500.0,0.00059452,120]
[340833191,1729897838788,-500.0,0.00059452,120]
[340833192,1729897838797,-500.0,0.00059452,120]
[340833193,1729897838806,-500.0,0.00059452,120]
[340833194,1729897838815,-500.0,0.00059452,120]
[340833195,1729897838824,-500.0,0.00059452,120]
[340833196,1729897838834,-151.716205,0.00059452,120]
[340833197,1729897838843,-152.311139,0.00059452,120]
[340833198,1729897838852,-411.95954132,0.00059452,120]
[340833199,1729897838861,-151.0,0.00059452,120]
[340833200,1729897838871,-500.0,0.00059452,120]
[340833201,1729897838880,-500.0,0.00059452,120]
[340833202,1729897838892,-522.76806178,0.00059452,120]
[340833203,1729897838900,-153.502483,0.00059452,120]
[340833204,1729897838910,-500.0,0.00059452,2]
[340833205,1729897838919,-519.60884402,0.00059452,120]
[340833206,1729897838928,-500.0,0.00059452,120]
[340833207,1729897838938,-531.41349098,0.00059452,120]
[340833208,1729897838947,-548.1338779,0.00059452,120]
[340833209,1729897838956,-679.15,0.00059452,120]
[340833210,1729897838966,-679.15,0.00059452,120]
[340833211,1729897838975,-679.15,0.00059452,120]
[340833212,1729897838985,-679.15,0.00059452,120]
[340833213,1729897838994,-679.15,0.00059452,120]
[340833214,1729897839003,-679.15,0.00059452,120]
[340833215,1729897839013,-679.15,0.00059452,120]
[340833216,1729897839022,-679.15,0.00059452,120]
[340833217,1729897839031,-679.15,0.00059452,120]
[340833218,1729897839041,-679.15,0.00059452,120]
[340833219,1729897839050,-679.15,0.00059452,120]
[340833220,1729897839060,-500.0,0.00059452,120]
[340833221,1729897839069,-500.0,0.00059452,120]
[340833222,1729897839078,-154.33514,0.00059452,120]
[340833223,1729897839087,-151.0,0.00059452,120]
[340833224,1729897839097,-500.0,0.00059452,120]
[340833225,1729897839106,-151.0,0.00059452,120]
[340833226,1729897839115,-500.0,0.00059452,120]
[340833227,1729897839124,-500.0,0.00059452,120]
[340833228,1729897839134,-500.0,0.00059452,120]
[340833229,1729897839144,-500.0,0.00059452,120]
[340833230,1729897839154,-500.0,0.00059452,120]
[340833231,1729897839163,-500.0,0.00059452,120]
[340833232,1729897839172,-500.0,0.00059452,120]
[340833233,1729897839181,-500.0,0.00059452,120]
[340833234,1729897839190,-500.0,0.00059452,120]
[340833235,1729897839199,-500.0,0.00059452,120]
[340833236,1729897839209,-471.01535904,0.00059452,120]
[340833237,1729897839218,-151.0,0.00059452,120]
[340833238,1729897839228,-500.0,0.00059452,60]
[340833239,1729897839237,-596.9200938,0.00059452,60]
[340833240,1729897839246,-542.43,0.00059452,7]
[340833241,1729897839256,-542.43,0.00059452,7]
[340833242,1729897839265,-542.43,0.00059452,7]
[340833243,1729897839275,-542.43,0.00059452,7]
[340833244,1729897839284,-542.43,0.00059452,7]
[340833245,1729897839293,-542.43,0.00059452,7]
[340833246,1729897839302,-151.0,0.00059452,120]
[340833247,1729897839311,-542.43,0.00059452,7]
[340833248,1729897839321,-542.43,0.00059452,7]
[340833249,1729897839330,-542.43,0.00059452,7]
[340833250,1729897839339,-542.43,0.00059452,7]
[340833251,1729897839348,-542.43,0.00059452,7]
[340833252,1729897839357,-151.0,0.00059452,120]
[340833253,1729897839367,-500.0,0.00059452,5]
[340833254,1729897839375,-151.0,0.00059452,120]
[340833255,1729897839386,-499.75295854,0.00059452,120]
[340833256,1729897839396,-434.89139365,0.00059452,120]
[340833257,1729897839405,-151.0,0.00059452,120]
[340833258,1729897839414,-500.0,0.00059452,120]
[340833260,1729897839424,-500.0,0.00059452,120]
[340833261,1729897839433,-500.0,0.00059452,120]
[340833263,1729897839442,-500.0,0.00059452,120]
[340833265,1729897839452,-500.0,0.00059452,120]
[340833268,1729897839461,-500.0,0.00059452,120]
[340833282,1729897839564,-500.0,0.00059452,120]
[340833284,1729897839574,-500.0,0.00059452,120]
[340833286,1729897839583,-500.0,0.00059452,120]
[340833288,1729897839593,-500.0,0.00059452,120]
[340833291,1729897839603,-151.0,0.00059452,120]
[340833293,1729897839613,-500.0,0.00059452,120]
[340833295,1729897839623,-1134.77,0.00059452,120]
[340833297,1729897839634,-1134.77,0.00059452,120]
[340833299,1729897839643,-1134.77,0.00059452,120]
[340833301,1729897839653,-1134.77,0.00059452,120]
[340833303,1729897839662,-1134.77,0.00059452,120]
[340833305,1729897839671,-1134.77,0.00059452,120]
[340833307,1729897839681,-1134.77,0.00059452,120]
[340833309,1729897839691,-1134.77,0.00059452,120]
[340833311,1729897839701,-500.0,0.00059452,120]
[340833313,1729897839711,-500.0,0.00059452,120]
[340833315,1729897839721,-500.0,0.00059452,120]
[340833317,1729897839731,-500.0,0.00059452,120]
[340833319,1729897839742,-500.0,0.00059452,120]
[340833321,1729897839752,-500.0,0.00059452,120]
[340833323,1729897839761,-500.0,0.00059452,120]
[340833325,1729897839770,-296.34450121,0.00059452,120]
[340833327,1729897839781,-500.0,0.00059452,120]
[340833329,1729897839791,-500.0,0.00059452,120]
[340833331,1729897839800,-624.19544637,0.00059452,120]
[340833333,1729897839810,-500.0,0.00059452,120]
[340833335,1729897839819,-500.0,0.00059452,120]
[340833337,1729897839829,-500.0,0.00059452,120]
[340833339,1729897839840,-500.0,0.00059452,120]
[340833341,1729897839851,-500.0,0.00059452,120]
[340833343,1729897839861,-500.0,0.00059452,120]
[340833345,1729897839872,-557.99928915,0.00059452,120]
[340833347,1729897839882,-500.0,0.00059452,120]
[340833349,1729897839897,-500.0,0.00059452,120]
[340833351,1729897839907,-500.0,0.00059452,120]
[340833353,1729897839917,-500.0,0.00059452,120]
[340833355,1729897839926,-500.0,0.00059452,120]
[340833357,1729897839936,-500.0,0.00059452,120]
[340833360,1729897839946,-500.0,0.00059452,120]
[340833362,1729897839956,-500.0,0.00059452,120]
[340833364,1729897839967,-500.0,0.00059452,120]
[340833366,1729897839976,-629.77964931,0.00059452,120]
[340833368,1729897839986,-500.0,0.00059452,120]
[340833370,1729897839995,-500.0,0.00059452,120]
[340833372,1729897840005,-500.0,0.00059452,120]
[340833374,1729897840015,-500.0,0.00059452,120]
[340833376,1729897840026,-500.0,0.00059452,120]
[340833378,1729897840036,-510.09033015,0.00059452,120]
[340833381,1729897840045,-948.63,0.00059452,120]
[340833384,1729897840054,-948.63,0.00059452,120]
[340833387,1729897840064,-948.63,0.00059452,120]
[340833390,1729897840073,-948.63,0.00059452,120]
[340833394,1729897840084,-500.0,0.00059452,120]
[340833397,1729897840095,-948.63,0.00059452,120]
[340833400,1729897840105,-500.0,0.00059452,120]
[340833403,1729897840115,-948.63,0.00059452,120]
[340833405,1729897840125,-500.0,0.00059452,120]
[340833407,1729897840134,-948.63,0.00059452,120]
[340833409,1729897840144,-948.63,0.00059452,120]
[340833411,1729897840153,-948.63,0.00059452,120]
[340833413,1729897840162,-500.0,0.00059452,120]
[340833415,1729897840172,-948.63,0.00059452,120]
[340833416,1729897840181,-500.0,0.00059452,120]
[340833419,1729897840191,-948.63,0.00059452,120]
[340833420,1729897840200,-500.0,0.00059452,120]
[340833422,1729897840209,-500.0,0.00059452,120]
[340833424,1729897840219,-948.63,0.00059452,120]
[340833426,1729897840228,-500.0,0.00059452,120]
[340833428,1729897840237,-500.0,0.00059452,120]
[340833430,1729897840248,-500.0,0.00059452,120]
[340833432,1729897840257,-500.0,0.00059452,120]
[340833434,1729897840267,-232.76513978,0.00059452,120]
[340833436,1729897840277,-594.56330111,0.00059452,120]
[340833437,1729897840286,-504.0969987,0.00059452,120]
[340833438,1729897840298,-501.77160792,0.00059452,120]
[340833439,1729897840307,-500.0,0.00059452,2]
[340833440,1729897840317,-500.0,0.00059452,2]
[340833441,1729897840327,-500.0,0.00059452,2]
[340833442,1729897840338,-500.0,0.00059452,2]
[340833443,1729897840348,-500.0,0.00059452,2]
[340833444,1729897840358,-500.0,0.00059452,2]
[340833445,1729897840367,-500.0,0.00059452,2]
[340833446,1729897840376,-500.0,0.00059452,120]
[340833447,1729897840387,-500.0,0.00059452,2]
[340833448,1729897840398,-500.0,0.00059452,2]
[340833449,1729897840407,-500.0,0.00059452,120]
[340833450,1729897840416,-607.97157403,0.00059452,120]
[340833451,1729897840426,-500.0,0.00059452,120]
[340833452,1729897840438,-500.0,0.00059452,2]
[340833453,1729897840449,-500.0,0.00059452,120]
[340833454,1729897840458,-559.11149089,0.00059452,2]
[340833455,1729897840468,-500.0,0.00059452,120]
[340833456,1729897840477,-500.0,0.00059452,120]
[340833457,1729897840486,-500.0,0.00059452,120]
[340833458,1729897840496,-500.0,0.00059452,120]
[340833459,1729897840506,-500.0,0.00059452,120]
[340833460,1729897840515,-500.0,0.00059452,120]
[340833461,1729897840524,-500.0,0.00059452,120]
[340833462,1729897840533,-500.0,0.00059452,120]
[340833463,1729897840542,-500.0,0.00059452,120]
[340833464,1729897840552,-500.0,0.00059452,120]
[340833465,1729897840560,-500.0,0.00059452,120]
[340833466,1729897840569,-500.0,0.00059452,120]
[340833467,1729897840578,-500.0,0.00059452,120]
[340833468,1729897840587,-500.0,0.00059452,120]
[340833469,1729897840596,-500.0,0.00059452,120]
[340833470,1729897840605,-520.04874181,0.00059452,120]
[340833471,1729897840614,-500.0,0.00059452,120]
[340833472,1729897840623,-497.80040001,0.00059452,120]
[340833473,1729897840632,-500.0,0.00059452,120]
[340833474,1729897840645,-500.0,0.00059452,120]
[340833475,1729897840654,-500.0,0.00059452,120]
[340833476,1729897840663,-500.0,0.00059452,120]
[340833477,1729897840672,-500.0,0.00059452,120]
[340833478,1729897840681,-500.0,0.00059452,120]
[340833479,1729897840689,-500.0,0.00059452,120]
[340833480,1729897840698,-500.0,0.00059452,120]
[340833481,1729897840708,-496.91018,0.00059452,120]
[340833482,1729897840717,-580.84283525,0.00059452,120]
[340833483,1729897840726,-508.27714434,0.00059452,120]
[340833484,1729897840735,-500.0,0.00059452,120]
[340833485,1729897840745,-500.0,0.00059452,120]
[340833486,1729897840754,-500.0,0.00059452,120]
[340833487,1729897840763,-500.0,0.00059452,120]
[340833488,1729897840772,-500.0,0.00059452,120]
[340833489,1729897840782,-321.14692041,0.00059452,120]
[340833490,1729897840791,-500.0,0.00059452,120]
[340833491,1729897840800,-500.0,0.00059452,120]
[340833492,1729897840809,-500.0,0.00059452,120]
[340833493,1729897840818,-500.0,0.00059452,120]
[340833494,1729897840827,-500.0,0.00059452,120]
[340833495,1729897840837,-500.0,0.00059452,120]
[340833496,1729897840846,-500.0,0.00059452,120]
[340833497,1729897840855,-500.0,0.00059452,120]
[340833499,1729897840864,-513.10512176,0.00059452,120]
[340833501,1729897840873,-500.0,0.00059452,120]
[340833502,1729897840882,-500.0,0.00059452,120]
[340833503,1729897840894,-340.78547134,0.00059452,120]
[340833504,1729897840904,-500.0,0.00059452,120]
[340833505,1729897840913,-500.0,0.00059452,120]
[340833506,1729897840922,-500.0,0.00059452,120]
[340833507,1729897840931,-500.0,0.00059452,120]
[340833508,1729897840940,-500.0,0.00059452,120]
[340833509,1729897840949,-500.0,0.00059452,120]
[340833510,1729897840959,-500.0,0.00059452,120]
[340833511,1729897840968,-500.0,0.00059452,120]
[340833512,1729897840978,-500.0,0.00059452,120]
[340833513,1729897840987,-500.0,0.00059452,120]
[340833514,1729897840997,-646.26266833,0.00059452,120]
[340833515,1729897841006,-500.0,0.00059452,120]
[340833516,1729897841016,-500.0,0.00059452,120]
[340833517,1729897841025,-500.0,0.00059452,120]
[340833518,1729897841034,-500.0,0.00059452,120]
[340833519,1729897841043,-500.0,0.00059452,120]
[340833520,1729897841052,-500.0,0.00059452,120]
[340833521,1729897841063,-500.0,0.00059452,120]
[340833522,1729897841071,-432.74763841,0.00059452,120]
[340833523,1729897841080,-500.0,0.00059452,120]
[340833524,1729897841090,-500.0,0.00059452,120]
[340833525,1729897841100,-500.0,0.00059452,120]
[340833526,1729897841109,-500.0,0.00059452,120]
[340833527,1729897841119,-500.0,0.00059452,120]
[340833528,1729897841129,-500.0,0.00059452,120]
[340833529,1729897841140,-500.0,0.00059452,120]
[340833530,1729897841150,-500.0,0.00059452,120]
[340833531,1729897841159,-500.0,0.00059452,120]
[340833532,1729897841168,-500.0,0.00059452,120]
[340833533,1729897841178,-500.0,0.00059452,120]
[340833534,1729897841187,-500.0,0.00059452,120]
[340833535,1729897841196,-500.0,0.00059452,120]
[340833536,1729897841204,-500.0,0.00059452,120]
[340833537,1729897841213,-500.0,0.00059452,120]
[340833538,1729897841222,-500.0,0.00059452,120]
[340833539,1729897841232,-500.0,0.00059452,120]
[340833540,1729897841241,-482.52132926,0.00059452,120]
[340833541,1729897841250,-505.67740929,0.00059452,120]
[340833542,1729897841259,-500.0,0.00059452,120]
[340833543,1729897841268,-485.48939105,0.00059452,120]
[340833544,1729897841277,-500.0,0.00059452,120]
[340833545,1729897841287,-500.0,0.00059452,120]
[340833546,1729897841296,-500.0,0.00059452,120]
[340833547,1729897841305,-499.475025,0.00059452,120]
[340833548,1729897841315,-151.0,0.00059452,120]
[340833549,1729897841324,-619.64,0.00059452,120]
[340833550,1729897841333,-528.95,0.00059452,120]
[340833551,1729897841342,-151.0,0.00059452,120]
[340833552,1729897841351,-500.0,0.00059452,120]
[340833553,1729897841360,-500.0,0.00059452,120]
[340833554,1729897841369,-162.083305,0.00059452,120]
[340833555,1729897841378,-500.0,0.00059452,120]
[340833556,1729897841388,-500.0,0.00059452,120]
[340833557,1729897841398,-500.0,0.00059452,120]
[340833558,1729897841407,-500.0,0.00059452,120]
[340833559,1729897841416,-500.0,0.00059452,120]
[340833560,1729897841425,-500.0,0.00059452,120]
[340833561,1729897841434,-500.0,0.00059452,120]
[340833562,1729897841443,-500.0,0.00059452,120]
[340833563,1729897841452,-500.0,0.00059452,120]
[340833564,1729897841462,-500.0,0.00059452,120]
[340833565,1729897841471,-500.0,0.00059452,120]
[340833566,1729897841480,-500.0,0.00059452,120]
[340833567,1729897841489,-500.0,0.00059452,120]
[340833568,1729897841498,-500.0,0.00059452,120]
[340833569,1729897841507,-2000.0,0.00059452,120]
[340833570,1729897841518,-500.0,0.00059452,120]
[340833571,1729897841529,-500.0,0.00059452,120]
[340833572,1729897841540,-500.0,0.00059452,120]
[340833573,1729897841550,-500.0,0.00059452,120]
[340833574,1729897841560,-500.0,0.00059452,120]
[340833575,1729897841569,-500.0,0.00059452,120]
[340833576,1729897841580,-505.97617959,0.00059452,120]
[340833577,1729897841589,-500.0,0.00059452,120]
[340833578,1729897841598,-500.0,0.00059452,120]
[340833579,1729897841607,-506.77366186,0.00059452,120]
[340833580,1729897841616,-500.0,0.00059452,120]
[340833581,1729897841625,-500.0,0.00059452,120]
[340833582,1729897841634,-500.0,0.00059452,120]
[340833583,1729897841646,-500.0,0.00059452,120]
[340833584,1729897841655,-500.0,0.00059452,120]
[340833585,1729897841664,-500.0,0.00059452,120]
[340833586,1729897841673,-321.6886456,0.00059452,120]
[340833587,1729897841682,-545.33375192,0.00059452,120]
[340833588,1729897841692,-500.0,0.00059452,120]
[340833589,1729897841785,-500.0,0.00059452,120]
[340833590,1729897841795,-500.0,0.00059452,120]
[340833591,1729897841804,-1165.71,0.00059452,120]
[340833592,1729897841813,-500.0,0.00059452,120]
[340833593,1729897841822,-1165.71,0.00059452,120]
[340833594,1729897841831,-500.0,0.00059452,120]
[340833595,1729897841851,-1165.71,0.00059452,120]
[340833596,1729897841861,-500.0,0.00059452,120]
[340833597,1729897841871,-505.47239201,0.00059452,120]
[340833598,1729897841880,-151.0,0.00059452,120]
[340833599,1729897841892,-1165.71,0.00059452,120]
[340833600,1729897841902,-500.0,0.00059452,120]
[340833601,1729897841911,-1165.71,0.00059452,120]
[340833602,1729897841921,-500.0,0.00059452,120]
[340833603,1729897841931,-1165.71,0.00059452,120]
[340833604,1729897841942,-1165.71,0.00059452,120]
[340833605,1729897841952,-1165.71,0.00059452,120]
[340833606,1729897841962,-1165.71,0.00059452,120]
[340833607,1729897841974,-1165.71,0.00059452,120]
[340833608,1729897841984,-1165.71,0.00059452,120]
[340833609,1729897841994,-1165.71,0.00059452,120]
[340833610,1729897842004,-500.0,0.00059452,120]
[340833611,1729897842014,-500.0,0.00059452,120]
[340833612,1729897842024,-500.0,0.00059452,120]
[340833613,1729897842034,-500.0,0.00059452,120]
[340833614,1729897842044,-500.0,0.00059452,120]
[340833615,1729897842054,-500.0,0.00059452,120]
[340833616,1729897842063,-602.25889522,0.00059452,120]
[340833617,1729897842073,-500.0,0.00059452,120]
[340833618,1729897842083,-500.0,0.00059452,120]
[340833619,1729897842094,-500.0,0.00059452,120]
[340833620,1729897842103,-498.91517,0.00059452,120]
[340833621,1729897842112,-337.26407195,0.00059452,120]
[340833622,1729897842122,-648.315824,0.00059452,120]
[340833623,1729897842132,-302.09802653,0.00059452,120]
[340833624,1729897842143,-500.0,0.00059452,120]
[340833625,1729897842153,-500.0,0.00059452,120]
[340833626,1729897842162,-648.315824,0.00059452,120]
[340833627,1729897842172,-500.0,0.00059452,120]
[340833628,1729897842181,-500.0,0.00059452,120]
[340833629,1729897842191,-500.0,0.00059452,120]
[340833630,1729897842200,-500.0,0.00059452,120]
[340833631,1729897842210,-500.0,0.00059452,120]
[340833632,1729897842219,-500.0,0.00059452,120]
[340833633,1729897842228,-500.0,0.00059452,120]
[340833634,1729897842238,-500.0,0.00059452,120]
[340833635,1729897842248,-500.0,0.00059452,120]